bitfinex-derivatives/quotes_SOLF0:USTF0_20220108
["timestamp","ask_amount","ask_price","bid_price","bid_amount"]
[1641643992431,7.86850477,146.41,146.38,14.52175947]
[1641643992631,6.55645385,146.43,146.4,14.52175947]
[1641643992931,10.46,146.44,146.4,21.88675947]
[1641643993130,9.43813137,146.47,146.4,21.88675947]
[1641643993532,9.43813137,146.47,146.4,7.365]
[1641643993832,9.43813137,146.47,146.41,1.84072785]
[1641643994032,19.51813137,146.47,146.41,1.84072785]
[1641643994934,19.51813137,146.47,146.44,14.49099623]
[1641643996133,9.43813137,146.47,146.44,14.49099623]
[1641643996834,37.84479,146.48,146.44,14.49099623]
[1641643997934,37.84479,146.48,146.43,16.33172408]
[1641643999637,37.84479,146.48,146.43,1.84072785]
[1641644001741,37.84479,146.48,146.43,16.33172408]
[1641644002241,43.30639546,146.48,146.43,16.33172408]
[1641644005144,9.46212472,146.47,146.43,16.33172408]
[1641644005346,5.46322585,146.44,146.43,16.33172408]
[1641644005544,11.30722585,146.44,146.43,16.33172408]
[1641644005945,11.30722585,146.44,146.43,1.84072785]
[1641644006145,38.97201585,146.44,146.43,1.84072785]
[1641644006850,38.97201585,146.44,146.41,16.33172408]
[1641644009249,38.97201585,146.44,146.42,14.49099623]
[1641644010953,44.43531319,146.44,146.42,14.49099623]
[1641644012153,16.77052319,146.44,146.42,14.49099623]
[1641644012657,44.43531319,146.44,146.42,14.49099623]
[1641644013156,44.43531319,146.44,146.43,14.49099623]
[1641644013857,44.43531319,146.44,146.42,14.49099623]
[1641644014057,33.50879,146.44,146.42,9.02725833]
[1641644014957,43.88879,146.44,146.42,9.02725833]
[1641644015561,43.88879,146.44,146.4,38.33794617]
[1641644016362,43.88879,146.44,146.39,38.33794617]
[1641644017158,43.88879,146.44,146.4,38.33794617]
[1641644019663,5.46347027,146.43,146.4,38.33794617]
[1641644020865,13.73847027,146.43,146.4,38.33794617]
[1641644022065,13.73847027,146.43,146.39,38.33794617]
[1641644023069,13.73847027,146.43,146.4,38.33794617]
[1641644023769,13.73847027,146.43,146.39,38.33794617]
[1641644025369,4.0,146.42,146.39,38.33794617]
[1641644025571,5.4645282,146.4,146.39,32.87850208]
[1641644025772,70.8431082,146.4,146.39,32.87850208]
[1641644026175,65.37858,146.4,146.35,57.60985898]
[1641644026374,5.707,146.39,146.34,58.8649]
[1641644026574,67.08658,146.4,146.34,47.3049]
[1641644026773,67.08658,146.4,146.33,57.60985898]
[1641644027675,27.66479,146.37,146.33,57.60985898]
[1641644027875,33.00779,146.37,146.32,66.3917]
[1641644028979,4.0,146.36,146.32,66.3917]
[1641644029377,33.00779,146.37,146.32,66.3917]
[1641644029580,34.71579,146.37,146.32,66.3917]
[1641644029778,27.66479,146.34,146.32,66.3917]
[1641644029980,27.66479,146.34,146.3,6.83130102]
[1641644030179,27.66479,146.34,146.28,67.5878]
[1641644030379,36.36479,146.34,146.28,67.5878]
[1641644031879,41.83187558,146.34,146.28,67.5878]
[1641644033485,14.16708558,146.34,146.28,67.5878]
[1641644033685,33.13187558,146.34,146.28,67.5878]
[1641644036791,37.13187558,146.34,146.28,67.5878]
[1641644036990,5.46748747,146.32,146.28,67.5878]
[1641644037192,27.66479,146.34,146.28,67.5878]
[1641644037389,27.66479,146.34,146.28,75.4708]
[1641644037590,31.66479,146.34,146.28,75.4708]
[1641644038090,5.46724799,146.33,146.28,75.4708]
[1641644040095,10.4,146.35,146.28,75.4708]
[1641644040292,27.66479,146.37,146.28,75.4708]
[1641644041595,27.66479,146.37,146.29,12.2398927]
[1641644043795,27.66479,146.37,146.29,23.07166042]
[1641644044194,37.66479,146.4,146.29,19.07166042]
[1641644044596,37.66479,146.4,146.35,14.46932901]
[1641644045498,41.66479,146.4,146.35,14.46932901]
[1641644045698,27.66479,146.37,146.35,14.46932901]
[1641644045899,29.37279,146.37,146.34,14.46932901]
[1641644046397,45.24958737,146.37,146.34,14.46932901]
[1641644046598,4.0,146.36,146.34,14.46932901]
[1641644046798,1.708,146.35,146.33,14.46932901]
[1641644047798,27.66479,146.34,146.33,14.46932901]
[1641644049602,1.708,146.36,146.33,14.46932901]
[1641644049801,33.13058737,146.37,146.33,14.46932901]
[1641644050002,33.13058737,146.37,146.34,14.46932901]
[1641644052404,9.46660041,146.35,146.34,14.46932901]
[1641644052605,11.37560041,146.35,146.34,14.46932901]
[1641644053304,15.37560041,146.35,146.34,14.46932901]
[1641644053704,11.37560041,146.35,146.34,14.46932901]
[1641644054104,11.37560041,146.35,146.34,13.54932901]
[1641644055106,5.46660041,146.35,146.34,13.54932901]
[1641644055705,5.46660041,146.35,146.31,103.88837029]
[1641644056107,27.66479,146.33,146.31,103.88837029]
[1641644056305,27.66479,146.33,146.31,38.60727029]
[1641644056506,33.13191356,146.33,146.31,38.60727029]
[1641644060011,6.56153847,146.31,146.27,57.60985898]
[1641644060209,10.56153847,146.31,146.27,48.68985898]
[1641644060409,6.56153847,146.31,146.27,48.68985898]
[1641644060812,6.56153847,146.31,146.25,69.35533515]
[1641644064813,34.22632847,146.31,146.25,69.35533515]
[1641644065717,5.46908453,146.28,146.25,69.35533515]
[1641644066516,10.93823057,146.28,146.25,69.35533515]
[1641644067018,10.93823057,146.28,146.26,1.75718707]
[1641644068820,5.46914604,146.28,146.26,1.75718707]
[1641644069019,34.22632847,146.31,146.26,9.41118707]
[1641644069420,6.56153847,146.31,146.26,9.41118707]
[1641644069621,27.66479,146.33,146.26,9.41118707]
[1641644069821,27.66479,146.33,146.26,13.41118707]
[1641644070021,7.87150258,146.36,146.3,6.83130102]
[1641644070222,6.55834433,146.38,146.3,12.63730102]
[1641644070422,6.55834433,146.38,146.31,62.9642]
[1641644070623,14.8262401,146.4,146.31,62.9642]
[1641644071022,42.4910301,146.4,146.31,62.9642]
[1641644071622,37.66479,146.4,146.31,64.72138707]
[1641644072523,43.12958495,146.4,146.32,1.75718707]
[1641644072725,1.708,146.39,146.32,1.75718707]
[1641644072923,5.46549971,146.38,146.32,1.75718707]
[1641644076828,4.0,146.37,146.32,1.75718707]
[1641644077028,29.37279,146.37,146.32,1.75718707]
[1641644077631,5.46647584,146.35,146.32,1.75718707]
[1641644078032,9.46652394,146.35,146.32,1.75718707]
[1641644078232,17.98752394,146.35,146.32,1.75718707]
[1641644078435,13.98752394,146.35,146.32,1.75718707]
[1641644078731,1.708,146.34,146.32,1.75718707]
[1641644079032,27.66479,146.34,146.32,1.75718707]
[1641644079631,5.46732746,146.33,146.32,1.75718707]
[1641644079832,9.46732746,146.33,146.32,1.75718707]
[1641644080031,3.71087652,146.31,146.28,63.9887]
[1641644080331,6.771,146.31,146.28,63.9887]
[1641644082836,4.0,146.29,146.27,58.01477816]
[1641644083037,4.0,146.28,146.27,58.01477816]
[1641644083237,9.977,146.28,146.27,58.01477816]
[1641644085837,9.977,146.28,146.27,54.01477816]
[1641644086241,9.977,146.28,146.23,67.4272]
[1641644086440,4.0,146.27,146.23,67.4272]
[1641644088444,27.66479,146.29,146.23,67.4272]
[1641644089648,1.709,146.3,146.25,6.83363515]
[1641644089847,16.69966407,146.35,146.26,4.0]
[1641644090048,16.69966407,146.35,146.27,64.7574]
[1641644090248,7.87041626,146.38,146.27,64.7574]
[1641644090448,7.87041626,146.38,146.27,71.59010131]
[1641644090653,11.87041626,146.38,146.27,71.59010131]
[1641644091053,27.66479,146.36,146.33,14.50146396]
[1641644092353,27.66479,146.36,146.31,67.1447]
[1641644092354,27.66479,146.36,146.34,14.50146396]
[1641644092554,27.66479,146.36,146.34,22.33146396]
[1641644093357,7.87041626,146.38,146.34,22.33146396]
[1641644093358,29.37279,146.39,146.34,22.33146396]
[1641644093557,27.66479,146.39,146.34,22.33146396]
[1641644094158,27.66479,146.39,146.36,14.50146396]
[1641644094957,27.66479,146.39,146.35,14.50146396]
[1641644095858,27.66479,146.39,146.36,14.50146396]
[1641644096960,27.66479,146.39,146.35,21.18946396]
[1641644097160,27.66479,146.39,146.35,14.50146396]
[1641644099165,27.66479,146.39,146.36,14.50146396]
[1641644100368,4.0,146.37,146.36,14.50146396]
[1641644100564,35.92968268,146.39,146.36,14.50146396]
[1641644100966,39.92968268,146.39,146.36,14.50146396]
[1641644101165,4.0,146.38,146.36,14.50146396]
[1641644101368,1.708,146.37,146.36,14.50146396]
[1641644101567,5.708,146.37,146.34,14.50146396]
[1641644101771,4.0,146.36,146.34,14.50146396]
[1641644102570,4.0,146.35,146.33,14.50146396]
[1641644103269,4.0,146.35,146.34,14.50146396]
[1641644105673,31.66479,146.35,146.34,14.50146396]
[1641644111281,41.70479,146.35,146.34,14.50146396]
[1641644111483,14.04,146.35,146.34,14.50146396]
[1641644111681,10.04,146.35,146.34,7.94038507]
[1641644112083,65.36958,146.35,146.34,7.94038507]
[1641644112686,69.36958,146.35,146.31,38.67057055]
[1641644112885,69.36958,146.35,146.3,45.64030444]
[1641644113087,65.36958,146.35,146.3,45.64030444]
[1641644114087,27.66479,146.32,146.3,45.64030444]
[1641644115188,27.66479,146.32,146.3,12.96973389]
[1641644116888,10.04,146.35,146.3,12.96973389]
[1641644118187,4.0,146.34,146.3,12.96973389]
[1641644118387,21.181,146.35,146.3,12.96973389]
[1641644118987,21.181,146.35,146.3,8.96973389]
[1641644119188,4.0,146.34,146.3,8.96973389]
[1641644119389,21.181,146.35,146.3,8.96973389]
[1641644119589,6.56018526,146.34,146.3,8.96973389]
[1641644120189,6.56018526,146.34,146.3,0.54973389]
[1641644120491,6.56018526,146.34,146.29,68.54823389]
[1641644120690,6.56018526,146.34,146.31,1.68707888]
[1641644121391,6.56018526,146.34,146.3,1.68707888]
[1641644123197,10.04,146.35,146.3,1.68707888]
[1641644124198,10.04,146.35,146.3,9.61007888]
[1641644125000,4.0,146.34,146.3,9.61007888]
[1641644125199,16.98430105,146.34,146.31,1.68707888]
[1641644125400,14.69230105,146.34,146.31,1.68707888]
[1641644126001,14.69230105,146.34,146.3,1.68707888]
[1641644126202,12.98430105,146.34,146.3,1.68707888]
[1641644131208,5.46777752,146.32,146.3,1.68707888]
[1641644131606,3.7821784,146.28,146.25,120.29403037]
[1641644131808,15.5711784,146.28,146.25,124.77923037]
[1641644132007,11.789,146.28,146.25,124.77923037]
[1641644132912,11.789,146.28,146.25,66.8126]
[1641644133913,11.789,146.28,146.26,38.7502141]
[1641644134817,11.789,146.28,146.25,105.5628141]
[1641644136515,27.66479,146.27,146.25,105.5628141]
[1641644136716,27.66479,146.27,146.25,38.7502141]
[1641644137215,33.13433324,146.27,146.25,38.7502141]
[1641644138517,37.13433324,146.27,146.25,38.7502141]
[1641644138719,33.13433324,146.27,146.25,38.7502141]
[1641644138916,37.13433324,146.27,146.25,38.7502141]
[1641644139118,38.18079,146.27,146.25,26.27990402]
[1641644139318,34.18079,146.27,146.21,57.20597423]
[1641644139524,4.0,146.22,146.21,9.52597423]
[1641644139723,4.0,146.22,146.2,1.72826167]
[1641644139923,6.56644019,146.2,146.16,61.90848067]
[1641644140123,6.56644019,146.2,146.16,3.20848067]
[1641644140323,6.56644019,146.2,146.1,62.7581]
[1641644140324,6.56644019,146.2,146.19,8.30966236]
[1641644140523,6.56814635,146.16,146.14,38.1741559]
[1641644140723,14.34214635,146.16,146.14,28.1741559]
[1641644141525,14.34214635,146.16,146.14,18.9941559]
[1641644141726,14.34214635,146.16,146.1,12.52974425]
[1641644141727,4.0,146.15,146.07,92.03059]
[1641644141924,4.0,146.12,146.02,6.84439273]
[1641644142125,4.0,146.08,146.03,64.4257]
[1641644142325,11.843,146.08,146.0,128.0568]
[1641644142525,7.843,146.08,146.01,27.66479]
[1641644143125,4.8262401,146.05,146.01,27.66479]
[1641644143425,11.9132401,146.05,146.01,27.66479]
[1641644143828,11.9132401,146.05,146.01,31.66479]
[1641644144026,11.9132401,146.05,146.01,27.66479]
[1641644144425,7.087,146.05,146.01,27.66479]
[1641644145327,0.78517656,146.08,146.01,27.66479]
[1641644145728,4.0,146.1,146.01,27.66479]
[1641644145933,1.711,146.11,146.01,31.66479]
[1641644146129,12.2808803,146.13,146.02,4.0]
[1641644146335,6.5698803,146.13,146.02,4.0]
[1641644146531,6.5698803,146.13,146.06,27.66479]
[1641644146735,6.5698803,146.13,146.06,33.87779]
[1641644146935,27.66479,146.14,146.06,33.87779]
[1641644149441,4.0,146.12,146.06,33.87779]
[1641644149640,4.0,146.11,146.05,14.36849778]
[1641644149843,4.0,146.09,146.05,14.36849778]
[1641644150042,5.47744136,146.06,146.04,68.2234]
[1641644150247,5.47744136,146.06,146.01,15.66479]
[1641644150248,13.27844136,146.06,146.01,15.66479]
[1641644150441,13.27844136,146.06,145.98,68.5032]
[1641644150642,13.27844136,146.06,145.98,96.16799]
[1641644150842,13.27844136,146.06,145.99,4.0]
[1641644151042,18.10468146,146.06,146.02,4.0]
[1641644151246,4.8262401,146.06,146.02,4.0]
[1641644151442,4.8262401,146.06,146.0,8.655]
[1641644151643,4.8262401,146.06,146.0,12.655]
[1641644152043,10.30217667,146.1,146.01,4.0]
[1641644152245,5.47670907,146.08,145.99,6.84556407]
[1641644152644,33.14149907,146.08,145.99,10.84556407]
[1641644152945,33.14149907,146.08,145.99,6.84556407]
[1641644153143,37.96773917,146.08,145.99,6.84556407]
[1641644153343,5.47777308,146.05,145.98,92.16799]
[1641644154646,1.712,146.04,145.98,92.16799]
[1641644154845,5.47777308,146.05,145.98,92.16799]
[1641644155245,7.18977308,146.05,145.98,92.16799]
[1641644155645,5.47777308,146.05,145.98,92.16799]
[1641644155844,10.30401318,146.05,145.98,92.16799]
[1641644156045,10.30401318,146.05,145.98,84.39061023]
[1641644156246,4.8262401,146.04,145.98,84.39061023]
[1641644156447,4.8262401,146.04,145.98,76.61319323]
[1641644156948,10.30401318,146.05,145.98,76.61319323]
[1641644157746,4.8262401,146.04,145.98,76.61319323]
[1641644157946,11.5202401,146.04,145.98,76.61319323]
[1641644159450,4.8262401,146.04,145.98,76.61319323]
[1641644159647,4.8262401,146.04,145.98,80.61319323]
[1641644159848,4.8262401,146.04,145.98,76.61319323]
[1641644160049,5.47777308,146.05,145.98,76.61319323]
[1641644160950,1.712,146.07,146.01,4.0]
[1641644161149,4.8262401,146.02,146.01,11.126]
[1641644161349,14.46430072,146.05,146.01,11.126]
[1641644161550,14.46430072,146.05,146.01,7.126]
[1641644161751,14.46430072,146.05,146.01,11.126]
[1641644162351,14.30598793,146.07,146.01,11.126]
[1641644162754,6.57185396,146.08,146.01,11.126]
[1641644163955,21.03615468,146.08,146.01,11.126]
[1641644164759,21.03615468,146.08,146.01,38.79079]
[1641644164960,5.47686768,146.07,146.01,34.79079]
[1641644166559,5.47748742,146.06,146.01,34.79079]
[1641644168861,19.94178814,146.06,146.01,34.79079]
[1641644169261,5.47803635,146.04,146.01,34.79079]
[1641644174775,5.47805516,146.04,146.01,34.79079]
[1641644174973,5.47805516,146.04,146.01,7.126]
[1641644175174,5.47921504,146.01,145.98,63.34617609]
[1641644175374,5.47921504,146.01,146.0,27.66479]
[1641644175574,6.57380066,146.04,146.0,27.66479]
[1641644175974,6.57380066,146.04,146.0,29.57860594]
[1641644176675,6.57380066,146.04,146.01,4.0]
[1641644176879,1.712,146.07,146.03,4.0]
[1641644177079,14.46430072,146.1,146.06,4.0]
[1641644177280,14.46430072,146.1,146.07,4.0]
[1641644177478,14.46430072,146.1,146.09,27.66479]
[1641644177679,14.46430072,146.1,146.09,35.06279]
[1641644177879,38.29268324,146.13,146.09,35.06279]
[1641644178079,5.47385661,146.15,146.09,35.06279]
[1641644178681,5.47479923,146.13,146.09,35.06279]
[1641644179080,5.47479923,146.13,146.09,7.398]
[1641644179280,5.47479923,146.13,146.1,40.20649918]
[1641644180180,5.47479923,146.13,146.1,1.91381594]
[1641644181080,5.47479923,146.13,146.09,38.29268324]
[1641644184285,5.47479923,146.13,146.1,38.29268324]
[1641644184488,5.47479923,146.13,146.1,44.63468324]
[1641644185285,5.47479923,146.13,146.11,1.91381594]
[1641644185685,3.56187179,146.11,146.1,38.29268324]
[1641644185886,1.711,146.11,146.1,38.29268324]
[1641644186086,1.711,146.11,146.08,14.527538]
[1641644186087,5.711,146.13,146.09,38.29268324]
[1641644186386,1.711,146.13,146.09,38.29268324]
[1641644186585,5.711,146.13,146.09,38.29268324]
[1641644186786,1.711,146.13,146.09,38.29268324]
[1641644187188,1.711,146.13,146.07,38.29268324]
[1641644187687,29.37579,146.13,146.07,38.29268324]
[1641644189088,29.37579,146.13,146.08,38.29268324]
[1641644189289,27.66479,146.13,146.08,47.12968324]
[1641644191188,5.47611468,146.09,146.08,47.12968324]
[1641644191390,5.47611468,146.09,146.08,8.837]
[1641644191590,5.47611468,146.09,146.06,14.527538]
[1641644194090,5.47657121,146.08,146.06,14.527538]
[1641644195295,6.57016788,146.12,146.06,14.527538]
[1641644195593,6.57016788,146.12,146.05,57.32156925]
[1641644195793,10.57016788,146.12,146.05,57.32156925]
[1641644195993,6.57016788,146.12,146.05,57.32156925]
[1641644196495,10.57016788,146.12,146.05,71.84910725]
[1641644196893,8.28116788,146.12,146.05,71.84910725]
[1641644199095,6.57016788,146.12,146.05,71.84910725]
[1641644199297,4.0,146.11,146.05,71.84910725]
[1641644199500,5.711,146.11,146.05,71.84910725]
[1641644199998,27.66479,146.1,146.05,71.84910725]
[1641644200399,31.66479,146.1,146.05,71.84910725]
[1641644200599,5.47698307,146.07,146.05,71.84910725]
[1641644201398,5.47698307,146.07,146.04,57.32156925]
[1641644202099,33.14069443,146.1,146.04,57.32156925]
[1641644202300,33.14069443,146.1,146.04,64.97656925]
[1641644202601,5.47673436,146.08,146.04,64.97656925]
[1641644203406,9.47710508,146.07,146.04,57.32156925]
[1641644203804,4.0,146.07,146.04,41.84309258]
[1641644204004,12.1059991,146.08,146.03,23.84309258]
[1641644204005,27.66479,146.05,146.03,23.84309258]
[1641644205107,27.66479,146.05,145.97,18.527538]
[1641644205507,27.66479,146.05,145.97,14.527538]
[1641644207108,27.66479,146.05,146.02,38.71571798]
[1641644207307,29.37579,146.05,146.02,38.71571798]
[1641644208212,57.04058,146.05,146.02,38.71571798]
[1641644208410,63.61388782,146.05,146.02,38.71571798]
[1641644209312,5.47818092,146.04,146.02,38.71571798]
[1641644210012,6.665,146.04,146.02,33.23678374]
[1641644210211,6.665,146.04,146.01,33.23678374]
[1641644211515,1.712,146.03,146.01,33.23678374]
[1641644212715,1.712,146.04,146.01,33.23678374]
[1641644213919,61.90288782,146.05,146.01,33.23678374]
[1641644214119,27.66479,146.02,146.01,33.23678374]
[1641644216722,27.66479,146.02,145.97,14.527538]
[1641644217622,36.52179,146.02,145.97,14.527538]
[1641644219223,27.66479,146.02,145.97,14.527538]
[1641644220324,27.66479,146.05,145.97,14.527538]
[1641644220926,27.66479,146.05,145.98,4.0]
[1641644221126,27.66479,146.05,145.97,14.527538]
[1641644221525,5.47819774,146.04,145.97,14.527538]
[1641644221726,5.47819774,146.04,145.98,58.060737]
[1641644222428,5.47819774,146.04,145.97,104.253065]
[1641644222726,5.47819774,146.04,145.98,4.0]
[1641644222926,27.66479,146.05,145.97,104.253065]
[1641644223327,27.66479,146.05,145.98,58.060737]
[1641644223727,5.47820511,146.04,145.98,58.060737]
[1641644224429,13.29820511,146.04,145.98,58.060737]
[1641644225329,7.82,146.04,145.98,58.060737]
[1641644225829,27.66479,146.05,145.98,58.060737]
[1641644226229,27.66479,146.05,145.98,60.19719657]
[1641644229032,5.47863326,146.03,145.98,60.19719657]
[1641644230835,11.75863326,146.03,145.98,60.19719657]
[1641644231838,11.75863326,146.03,145.99,58.060737]
[1641644233141,5.47881517,146.02,145.99,58.060737]
[1641644233740,5.47881517,146.02,145.98,60.19719657]
[1641644236442,5.47881517,146.02,145.99,4.0]
[1641644236644,55.32958,146.05,145.99,5.477]
[1641644236843,6.57296396,146.06,145.99,5.477]
[1641644237247,6.57296396,146.06,146.0,60.19719657]
[1641644237448,6.57296396,146.06,146.0,127.20059657]
[1641644238249,6.57296396,146.06,146.01,16.66399757]
[1641644239149,6.57296396,146.06,146.02,2.13645957]
[1641644240051,6.57296396,146.06,146.01,16.66399757]
[1641644241049,6.57296396,146.06,146.02,2.13645957]
[1641644241851,6.57296396,146.06,146.01,93.17013141]
[1641644242551,13.22896396,146.06,146.01,93.17013141]
[1641644242856,13.22896396,146.06,146.02,2.13645957]
[1641644243754,13.22896396,146.06,146.01,16.66399757]
[1641644243956,6.57296396,146.06,146.01,16.66399757]
[1641644244656,6.57296396,146.06,146.02,2.13645957]
[1641644245558,6.57296396,146.06,146.01,16.66399757]
[1641644246558,6.57296396,146.06,146.02,2.13645957]
[1641644247958,6.57296396,146.06,146.01,16.66399757]
[1641644248158,6.57296396,146.06,146.01,60.19719657]
[1641644248758,6.57296396,146.06,146.01,74.72473457]
[1641644248959,5.47791059,146.05,146.01,74.72473457]
[1641644249158,7.18891059,146.05,146.01,74.72473457]
[1641644249860,7.18891059,146.05,146.04,38.82313491]
[1641644250059,5.47791059,146.05,146.04,38.82313491]
[1641644250859,6.57296396,146.06,146.04,33.34460786]
[1641644251463,4.0,146.05,146.04,33.34460786]
[1641644251665,4.0,146.05,146.04,14.05406704]
[1641644251666,11.716,146.05,146.04,14.05406704]
[1641644252263,11.716,146.05,146.02,2.13645957]
[1641644252464,7.716,146.05,146.04,14.56374627]
[1641644252665,13.427,146.05,146.04,14.56374627]
[1641644253266,13.427,146.05,145.99,2.13645957]
[1641644253464,4.0,146.04,145.99,16.66399757]
[1641644253664,9.427,146.05,145.99,16.66399757]
[1641644253865,13.427,146.05,145.99,16.66399757]
[1641644254067,13.427,146.05,146.0,2.13645957]
[1641644254265,11.716,146.05,146.0,2.13645957]
[1641644254467,31.66479,146.03,146.0,2.13645957]
[1641644256470,38.23910668,146.03,146.0,2.13645957]
[1641644256674,6.57445099,146.02,146.0,2.13645957]
[1641644256875,15.03645099,146.02,146.0,2.13645957]
[1641644257676,19.03645099,146.02,146.0,2.13645957]
[1641644257880,6.57501004,146.0,145.97,14.527538]
[1641644258077,4.0,145.98,145.97,14.527538]
[1641644258276,10.339,145.98,145.97,14.527538]
[1641644258476,38.00379,145.98,145.93,68.421]
[1641644258676,4.0,145.97,145.93,53.421]
[1641644259077,4.0,145.95,145.92,58.060737]
[1641644259277,10.282,145.95,145.92,58.060737]
[1641644259479,4.0,145.93,145.92,51.340737]
[1641644259680,4.0,145.93,145.92,48.240737]
[1641644260180,4.0,145.93,145.9,48.240737]
[1641644260381,4.0,145.94,145.9,47.240737]
[1641644260579,27.66479,145.92,145.9,47.240737]
[1641644260780,36.06379,145.92,145.9,47.240737]
[1641644261183,36.06379,145.92,145.86,131.3102]
[1641644261381,36.06379,145.92,145.86,66.3717]
[1641644262080,36.06379,145.92,145.82,134.0362]
[1641644262480,36.06379,145.92,145.82,155.42370491]
[1641644263281,27.66479,145.92,145.83,4.0]
[1641644263582,27.66479,145.92,145.83,10.895]
[1641644263781,27.66479,145.92,145.83,6.895]
[1641644264281,27.66479,145.92,145.84,4.0]
[1641644264484,27.66479,145.95,145.86,27.66479]
[1641644264782,27.66479,145.95,145.87,63.7216]
[1641644266781,27.66479,145.95,145.87,67.7216]
[1641644267183,27.66479,145.95,145.87,75.0676]
[1641644267586,27.66479,145.95,145.87,71.0676]
[1641644268387,27.66479,145.95,145.87,63.7216]
[1641644269186,27.66479,145.95,145.87,73.4566]
[1641644269388,27.66479,145.95,145.87,69.4566]
[1641644269589,27.66479,145.95,145.87,73.4566]
[1641644269790,27.66479,145.95,145.88,4.0]
[1641644269989,10.06,145.98,145.9,4.0]
[1641644270189,10.06,145.98,145.9,12.788]
[1641644270392,10.06,145.98,145.9,8.788]
[1641644270590,10.06,145.98,145.9,36.45279]
[1641644271990,10.06,145.98,145.9,40.45279]
[1641644272191,27.66479,146.0,145.91,4.0]
[1641644272391,27.66479,146.0,145.91,68.3109]
[1641644272593,27.66479,146.0,145.91,106.90300752]
[1641644273497,27.66479,146.0,145.92,38.59210752]
[1641644274598,27.66479,146.0,145.95,14.47811728]
[1641644275195,10.57607136,145.99,145.95,4.09811728]
[1641644275595,6.57607136,145.99,145.95,4.09811728]
[1641644276198,6.57607136,145.99,145.92,51.24212478]
[1641644276397,6.57607136,145.99,145.88,101.01081275]
[1641644276899,5.48052029,145.98,145.88,101.01081275]
[1641644277099,5.48157406,145.95,145.88,101.01081275]
[1641644277299,5.48157406,145.95,145.89,51.24212478]
[1641644278301,5.48157406,145.95,145.89,38.59210752]
[1641644279001,27.66479,145.97,145.89,38.59210752]
[1641644279202,33.14559474,145.97,145.89,38.59210752]
[1641644280705,5.48080474,145.97,145.89,45.05810752]
[1641644281005,5.48080474,145.97,145.91,27.66479]
[1641644281905,5.48080474,145.97,145.91,66.25689752]
[1641644282516,9.48080474,145.97,145.91,38.59210752]
[1641644282706,5.48155081,145.95,145.91,51.24212478]
[1641644282905,41.73234081,145.95,145.91,51.24212478]
[1641644283305,5.48231193,145.93,145.91,51.24212478]
[1641644284107,5.48231193,145.93,145.87,57.86332587]
[1641644284310,5.48231193,145.93,145.86,132.06699752]
[1641644285611,5.48231193,145.93,145.88,38.59210752]
[1641644287211,5.48231193,145.93,145.89,38.59210752]
[1641644287713,9.48231193,145.93,145.89,38.59210752]
[1641644287912,5.48231193,145.93,145.89,38.59210752]
[1641644288113,5.4830676,145.91,145.88,38.59210752]
[1641644288314,11.4290676,145.91,145.88,38.59210752]
[1641644288812,5.48344016,145.9,145.88,38.59210752]
[1641644289014,5.48344016,145.9,145.86,104.40220752]
[1641644292214,5.48344016,145.9,145.86,65.8101]
[1641644292615,5.48368585,145.89,145.86,65.8101]
[1641644293015,5.48368585,145.89,145.85,38.59210752]
[1641644294218,5.48368585,145.89,145.87,38.59210752]
[1641644296618,5.48368585,145.89,145.86,38.59210752]
[1641644297624,13.66668585,145.89,145.85,38.59210752]
[1641644298323,13.66668585,145.89,145.86,38.59210752]
[1641644298726,8.183,145.89,145.86,38.59210752]
[1641644298924,6.5782607,145.94,145.86,38.59210752]
[1641644299126,6.5782607,145.94,145.86,75.74389752]
[1641644299327,6.5782607,145.94,145.88,38.59210752]
[1641644300328,6.5782607,145.94,145.89,38.59210752]
[1641644300929,13.4339149,145.94,145.89,38.59210752]
[1641644301131,5.48320346,145.91,145.89,38.59210752]
[1641644302131,5.48320346,145.91,145.87,1.89956791]
[1641644302931,5.48320346,145.91,145.88,38.59210752]
[1641644305332,5.48320346,145.91,145.9,14.54447222]
[1641644307937,5.48383934,145.89,145.87,18.11210752]
[1641644308139,12.88083934,145.89,145.87,18.11210752]
[1641644308739,12.88083934,145.89,145.86,1.89956791]
[1641644308940,12.88083934,145.89,145.84,1.89956791]
[1641644309339,4.0,145.87,145.83,20.58435791]
[1641644309540,5.48520234,145.85,145.77,124.63012587]
[1641644309840,11.81620234,145.85,145.77,124.63012587]